Cogmind - Beta 14 @@@ ROGUE MODE // 2024.08.18 @ 10:41:00 Player: Daffa0360 Result: Destroyed by Y-45 Defender with Beam Rifle Performance ------------- Evolutions (0) 0 Regions Visited (3) 600 Robots Destroyed (28) 140 Value Destroyed (666) 666 Prototype IDs (0) 0 Alien Tech Used (0) 0 Bonus (0) 0 TOTAL SCORE: 1406 Bonus ------- None Cogmind --------- Core Integrity 0/250 Matter 242/300 Energy 67/100 System Corruption 0% Temperature Cool (9) Movement Core (150) Ox2 Location -10/Subcaves Parts ------- > --- POWER (1) -------- (None) > --- PROPULSION (2) --- (None) > --- UTILITY (2) ------ Small Storage Unit > --- WEAPON (2) ------- Mining Claw > --- INVENTORY (8) ---- Light Treads Light Treads Compact Matter Pod (150) Improved Terrain Scanner Hacking Suite Rocket Launcher Blade Trap Peak State ------------ > --- POWER ------------ Light Nuclear Core > --- PROPULSION ------- Aluminum Leg Aluminum Leg > --- UTILITY ---------- Small Storage Unit Improved Terrain Scanner > --- WEAPON ----------- Medium Laser Assault Rifle > --- INVENTORY -------- Ion Engine Compact Matter Pod Light Armor Plating Hacking Suite Light Cannon Rocket Launcher Mining Claw Blade Trap [Rating: 12] Favorites ----------- Power Ion Engine Engine Ion Engine Power Core Light Nuclear Core Propulsion Aluminum Leg Leg Aluminum Leg Wheel Compact Wheel Utility Small Storage Unit Device Improved Terrain Scanner Storage Small Storage Unit Protection Light Armor Plating Weapon Medium Laser Energy Gun Medium Laser Ballistic Gun Assault Rifle Ballistic Cannon Light Cannon Launcher Rocket Launcher Slashing Weapon Mining Claw Build | -11 -10 -10 -10 ------- Run | Yrd Mat Min Sub Slots Evolved . | . . . . Power . | . . . . Propulsion . | . . . . Utility . | . . . . Weapon . | . . . . Parts Attached 22 | 6 3 4 9 Power 3 | 1 . 1 1 Engine 2 | 1 . . 1 Core 1 | . . 1 . Reactor . | . . . . Propulsion 5 | 2 1 2 . Treads . | . . . . Leg 2 | . . 2 . Wheel 3 | 2 1 . . Hover . | . . . . Flight . | . . . . Utility 6 | 1 2 1 2 Device 1 | . . . 1 Storage 2 | 1 1 . . Processor . | . . . . Hackware . | . . . . Protection 3 | . 1 1 1 Artifact . | . . . . Weapon 8 | 2 . . 6 Energy Gun 3 | 1 . . 2 Energy Cannon . | . . . . Ballistic Gun 1 | 1 . . . Ballistic Cannon 1 | . . . 1 Launcher 1 | . . . 1 Special Weapon . | . . . . Impact Weapon . | . . . . Slashing Weapon 2 | . . . 2 Piercing Weapon . | . . . . Special Melee Weapon . | . . . . Unidentified Prototypes . | . . . . Parts Lost 11 | . 1 2 8 Power 2 | . . . 2 Propulsion 5 | . 1 2 2 Utility 1 | . . . 1 Weapon 3 | . . . 3 Highest Loss Streak 5 | . 1 1 5 To Critical Strikes . | . . . . Average Slot Usage (%) 93 | . 94 96 90 Engine 8 | . 14 8 5 Core 3 | . . 5 1 Leg 18 | . . 18 26 Wheel 6 | . 25 6 . Device 4 | . . . 13 Storage 14 | . 14 14 14 Protection 8 | . 10 14 . Energy Gun 11 | . 14 14 8 Ballistic Gun 9 | . 14 14 1 Ballistic Cannon 4 | . . . 11 Slashing Weapon 1 | . . . 4 Peak Build Rating 12 | 6 8 10 12 Average Rating 8 | 4 7 8 9 On Entrance 6 | . 6 8 10 Naked Turns . | . . . . Heaviest Build 18 | 14 17 17 18 Greatest Support 26 | 26 26 26 20 Greatest Overweight (x) 1 | . 1 1 . Average Overweight (x) . | . . . . Largest Inventory Capacity 8 | 8 8 8 8 Average Capacity 7 | 6 8 8 8 Most Carried 8 | 5 8 8 8 Average Carried 6 | 2 6 7 6 Final Capacity 8 | 8 8 8 8 Final Carried 8 | 5 7 8 7 Class Distribution -------------------- 100% | Mutant Dominant Class ---------------- Mutant | -10/Materials Mutant | -10/Mines Mutant | -10/Subcaves Resources | -11 -10 -10 -10 ----------- Run | Yrd Mat Min Sub Matter Collected 652 | 221 160 74 197 Remotely . | . . . . Salvage Created 689 | 22 266 184 217 Parts 56 | 3 19 13 21 Haulers Intercepted . | . . . . Recyclers Shooed 1 | . 1 . . Parts Field Recycled . | . . . . Retrieved Matter . | . . . . Parts Self-Destructed 9 | . . . 9 Prevented . | . . . . Kills | -11 -10 -10 -10 ------- Run | Yrd Mat Min Sub Combat Hostiles Destroyed 25 | . 6 8 11 Guns 17 | . 6 8 3 Cannons 3 | . . . 3 AOE 5 | . . . 5 Classes Destroyed 6 | 1 4 . 1 Tunneler 1 | 1 . . . Recycler 1 | . 1 . . Operator 1 | . 1 . . Swarmer 12 | . 3 6 3 Grunt 7 | . 3 2 2 Subdweller 6 | . . . 6 Best Kill Streak 8 | 1 2 5 8 Combat Bots Only 8 | . 2 5 8 Max Kills in Single Turn 3 | 1 1 1 3 Gunslinging . | . . . . Exploded 3 | . . . 3 Melee . | . . . . Uniques/NPCs Destroyed . | . . . . Combat | -11 -10 -10 -10 -------- Run | Yrd Mat Min Sub Hostile Shots Fired 133 | . 27 25 81 Missed 39 | . 7 8 24 Damage Taken 1401 | . 215 172 1014 Core 262 | . 35 25 202 Absorbed by Shields . | . . . . Core Remaining (%) 100 | 100 . . . Volleys Fired 76 | 2 30 13 31 Largest 2 | 2 2 2 2 Hottest 85 | 70 70 70 85 Shots Fired 149 | 4 60 26 59 Gun 114 | 4 60 26 24 Cannon 27 | . . . 27 Launcher 8 | . . . 8 Special . | . . . . Kinetic 75 | 2 30 13 30 Thermal 66 | 2 30 13 21 Explosive 8 | . . . 8 Electromagnetic . | . . . . Robot Hit Streak 10 | 4 10 4 10 Robot Miss Streak 3 | . 3 3 2 Penetration Max . | . . . . Secondary Targets 1 | . . 1 . Max Gunslinging Chain 1 | . . 1 . Shots Hit Robots 100 | 4 38 14 44 Core Hits 45 | 1 14 10 20 Critical Kills . | . . . . Critical Parts Destroyed . | . . . . Critical Strikes 1 | . . . 1 Blast 1 | . . . 1 Melee Attacks 18 | . . . 18 Impact . | . . . . Slashing 18 | . . . 18 Piercing . | . . . . Sneak Attacks . | . . . . Combat Hostiles . | . . . . Follow-up Attacks . | . . . . Damage Inflicted 1922 | 47 486 185 1204 Guns 903 | 47 486 179 191 Cannons 287 | . . . 287 Explosions 605 | . . . 605 Melee 121 | . . . 121 Ramming 6 | . . 6 . Kinetic 687 | 22 245 93 327 Thermal 503 | 25 241 86 151 Explosive 605 | . . . 605 Electromagnetic . | . . . . Impact . | . . . . Slashing 121 | . . . 121 Piercing . | . . . . Highest Corruption . | . . . . Average Corruption . | . . . . Corruption Purged . | . . . . Corruption Blocked . | . . . . Overload Shots . | . . . . Overflow Damage . | . . . . Projectiles . | . . . . Explosions . | . . . . Melee . | . . . . Knockbacks 3 | . . . 3 Impact . | . . . . Kinetic 3 | . . . 3 Secondary . | . . . . Self-Inflicted Damage 13 | . . . 13 Shots 1 | . . . 1 Rammed . | . . . . Targets Rammed 1 | . . 1 . Kicked 1 | . . 1 . Crushed . | . . . . Highest Temperature 161 | 18 161 123 . Average Temperature 45 | 10 49 41 . Received Heat Transfer 396 | . 96 54 246 Siege Activations . | . . . . Robots Corrupted . | . . . . Combat Hostiles . | . . . . Parts Fried . | . . . . Impact Corruptions . | . . . . Robots Melted . | . . . . Combat Hostiles . | . . . . Parts Melted 4 | . 1 2 1 Heat Transferred 1480 | 74 703 259 444 Parts Sabotaged . | . . . . Parts Stolen . | . . . . Parts Stripped . | . . . . Power Chain Reactions . | . . . . Alert | -11 -10 -10 -10 ------- Run | Yrd Mat Min Sub Peak Influence 278 | 5 203 278 . Initial 78 | . 3 78 . Average 129 | . 135 137 . Maximum Alert Level 1 | . 1 1 . Low Security (%) 73 | 100 92 65 . Level 1 26 | . 7 34 . Level 2 . | . . . . Level 3 . | . . . . Level 4 . | . . . . Level 5 . | . . . . High Security . | . . . . Max Security . | . . . . Squads Dispatched 1 | . 1 . . Investigation . | . . . . Extermination . | . . . . Reinforcement 1 | . 1 . . Assault . | . . . . Garrison . | . . . . Intercept . | . . . . Searches Triggered . | . . . . Construction Impeded . | . . . . Haulers Reinforced . | . . . . Active Scanning Responses . | . . . . Cargo Convoy Interrupts . | . . . . Stealth | -11 -10 -10 -10 --------- Run | Yrd Mat Min Sub Distress Signals 1 | . 1 . . Communications Jammed . | . . . . Distress Signals . | . . . . Times Spotted 34 | . 12 10 12 Peak Tracking Total 5 | . 3 5 4 Tactical Retreats 2 | . 1 1 . Traps | -11 -10 -10 -10 ------- Run | Yrd Mat Min Sub Traps Triggered 2 | . . . 2 Indirectly . | . . . . Trap Hack Attempts . | . . . . Triggered . | . . . . Disarmed . | . . . . Reprogrammed . | . . . . Reused . | . . . . Traps Extracted . | . . . . Installed 1 | . . 1 . Triggered . | . . . . Most Traps Carried 1 | . . 1 1 Machines | -11 -10 -10 -10 ---------- Run | Yrd Mat Min Sub Machines Disabled . | . . . . Max in Single Turn . | . . . . Machines Repaired . | . . . . Machines Dismantled . | . . . . Machines Sabotaged . | . . . . Overloaded Fab Kills . | . . . . Hacking | -11 -10 -10 -10 --------- Run | Yrd Mat Min Sub Machines Accessed 1 | . 1 . . Terminals 1 | . 1 . . Fabricators . | . . . . Repair Stations . | . . . . Recycling Units . | . . . . Scanalyzers . | . . . . Garrison Access . | . . . . Total Hacks 3 | . 3 . . Successful 2 | . 2 . . Failed 1 | . 1 . . Catastrophic . | . . . . Database Lockouts . | . . . . Manual 1 | . 1 . . Terminals 3 | . 3 . . Fabricators . | . . . . Repair Stations . | . . . . Recycling Units . | . . . . Scanalyzers . | . . . . Garrison Access . | . . . . Terminal Hacks 1 | . 1 . . Alert Level 1 | . 1 . . Fabricator Hacks . | . . . . Repair Station Hacks . | . . . . Recycling Unit Hacks . | . . . . Scanalyzer . | . . . . Garrison Access Hacks . | . . . . Unauthorized Hacks 1 | . 1 . . Terminals 1 | . 1 . . Botnet 1 | . 1 . . Fabricators . | . . . . Repair Stations . | . . . . Recycling Units . | . . . . Scanalyzers . | . . . . Garrison Access . | . . . . Data Cores Recovered . | . . . . Used . | . . . . Hacking Detections . | . . . . Full Trace Events . | . . . . Feedback Events . | . . . . Feedback Blocked . | . . . . Robot Schematics Acquired . | . . . . Robots Built . | . . . . Authchips . | . . . . Time . | . . . . Total Robot Build Rating . | . . . . Part Schematics Acquired . | . . . . Parts Built . | . . . . Authchips . | . . . . Time . | . . . . Total Part Build Rating . | . . . . Parts Repaired . | . . . . Time . | . . . . Parts Recycled . | . . . . Recycled Matter . | . . . . Retrieved Matter . | . . . . Retrieved Components . | . . . . Parts Scanalyzed . | . . . . Part Schematics Acquired . | . . . . Parts Damaged . | . . . . Bothacking | -11 -10 -10 -10 ------------ Run | Yrd Mat Min Sub Used RIF Installer . | . . . . Robots Hacked . | . . . . Non-combat . | . . . . Combat . | . . . . Robot Hacks Applied . | . . . . Relay Couplers Released . | . . . . Fabnet Peak Effective % . | . . . . Robots Rewired . | . . . . Allies Hacked . | . . . . Hacks Repelled . | . . . . Allies | -11 -10 -10 -10 -------- Run | Yrd Mat Min Sub Total Allies . | . . . . Largest Group . | . . . . Highest-Rated Group . | . . . . Highest-Rated Ally . | . . . . Total Orders . | . . . . Ally Attacks . | . . . . Total Damage . | . . . . Kills . | . . . . Allies Corrupted . | . . . . Allies Melted . | . . . . Intel | -11 -10 -10 -10 ------- Run | Yrd Mat Min Sub Robot Analysis Total . | . . . . Derelict Logs Recovered 1 | . . 1 . Drone Launches . | . . . . Drone Recoveries . | . . . . Exploration | -11 -10 -10 -10 ------------- Run | Yrd Mat Min Sub Turns Passed 2008 | 73 309 893 733 Spaces Moved 1235 | 57 218 579 381 Core 3 | 3 . . . Treads . | . . . . Legs 721 | . . 340 381 Wheels 511 | 54 218 239 . Hover . | . . . . Flight . | . . . . Fastest Speed 50 | 50 90 90 120 Average Speed 111 | 87 90 115 120 Slowest Speed 120 | 90 95 120 120 Overloaded Moves . | . . . . Propulsion Burnouts . | . . . . Robots Hopped . | . . . . Cave-ins Triggered . | . . . . Exploration Rate (%) 40 | 5 34 96 25 Regions Visited 3 Branch Regions 2 Pre-discovered Areas 1 | . . 1 . Known Exits Taken 1 | . . 1 . Unknown Exits Taken 2 | 1 1 . . Scrap Searched 1 | . . 1 . Spaces Dug . | . . . . Terrain Destroyed 39 | . . . 39 Melee . | . . . . Projectile . | . . . . AOE 39 | . . . 39 Terrain Rammed . | . . . . Walls Destroyed . | . . . . Machines Disabled . | . . . . Actions | -11 -10 -10 -10 --------- Run | Yrd Mat Min Sub Total 1683 | 75 269 780 559 Wait 306 | . 11 175 120 Move 1232 | 56 217 578 381 Hop . | . . . . Pick Up 22 | 11 6 5 . Fast Attach . | . . . . Attach 13 | 6 2 2 3 Detach . | . . . . Swap 9 | . 1 2 6 Drop 5 | . 2 3 . Fire 76 | 2 30 13 31 Melee 18 | . . . 18 Ram . | . . . . Kick 1 | . . 1 . Crush . | . . . . Escape Stasis . | . . . . Rewire . | . . . . Trap 1 | . . 1 . Miscellaneous . | . . . . Route ------- -11/Scrapyard -10/Materials -10/Mines (discovered 3 exits: [*Mat x2] / *Sub) -10/Subcaves (discovered 1 exit: [*Mat]) History --------- Turn | Location | Event 15 | -11/Scrapyard | Discovered new exit (range 14) 74 | -11/Scrapyard | Entered Materials 269 | -10/Materials | Discovered new exit (range 14) 309 | -10/Materials | Build established: Mutant 383 | -10/Materials | Entered Mines 387 | -10/Mines | Discovered new exit (range 8) 462 | -10/Mines | Identified exit to Subcaves 560 | -10/Mines | Found a hidden stash of uninstalled traps 585 | -10/Mines | Learned location of Storage (-7) 731 | -10/Mines | Received a Rocket Launcher from a helpful Derelict 854 | -10/Mines | Discovered new exit (range 13) 892 | -10/Mines | Joined a pair of Derelicts in attacking an 0b10 outpost 1276 | -10/Mines | Entered Subcaves 1279 | -10/Subcaves | Shifting Twisted Machinery released Sub. Laser 1283 | -10/Subcaves | Shifting Twisted Machinery released Sub. Laser 1628 | -10/Subcaves | Discovered new exit (range 14) 1652 | -10/Subcaves | Ambushed by Subdweller buried in earth 1652 | -10/Subcaves | Ambushed by Subdweller buried in earth 1652 | -10/Subcaves | Ambushed by Subdweller buried in earth 1656 | -10/Subcaves | Core integrity fell below 50% 1699 | -10/Subcaves | Destroyed 8 combat bots 1989 | -10/Subcaves | Core integrity fell below 20% 2009 | -10/Subcaves | Destroyed by Y-45 Defender with Beam Rifle Last Messages --------------- 01808_ Acquired 10 matter. 01813_ Acquired 7 matter. 01819_ Acquired 15 matter. 01826_ Acquired 9 matter. 01827_ The unstable cave ceiling collapses. 01827_ Sub. Monowheel crushed. 01835_ Acquired 4 matter. 01838_ Acquired 10 matter. 01840_ The unstable cave ceiling collapses. 01841_ Acquired 43 matter. 01963_ G-34 Mercenary destroyed. 01966_ Med. Laser destroyed. 01969_ Aluminum Leg destroyed. 01969_ Critical hit (Burn: +37). 01972_ Lgt. Cannon destroyed. 01976_ Aluminum Leg fries itself beyond repair. 01979_ Aluminum Leg destroyed. 01995_ Y-45 Defender Lgt. Treads ripped off. 02006_ Lgt. Armor Plating destroyed. 02007_ Y-45 Defender Lgt. Treads ripped off. Map ----- +----------------------------------------------------+ | ?????????????????????????????????????????????????? | | ?????????????????????????????????????????????????? | | ?????????????????????????????????????????????????? | | ?????????????????????????????????????????????????? | | ?????????????????????????????????????????????????? | | ?????????????????????????????????????????????????? | | ?????????????????????????????????????????????????? | | ?????????????????????????????????????????????????? | | ?????????????????????????????????????????????????? | | # ?#????????????????????????????????????????????? | | #???????????????????????#?????????????????????? | | ?????????????????????????????????????????????? | | ???????????????????????????#?????????????????? | | ?????????????????????????????????????????????? | | ?#??#?????????????????????????????????????????? | | # ???????????????#??????????????????????????????? | | ???#?????????????????#???????#???????#???????????? | | ####??????????#?????????????????????#????????????? | | # ###??????????????#???????#????????????????????? | | ##??????#??#???????????????????#????????????? | | ###????????????????????????????????????????? | | ## #????????#????????????????? ?????????????? | | ### ##?#???#??????####????????????????????????? | | ##### #???????????## ##??#?????#??????????????? | | ### ############## # ##?????#????????????????? | | # ## # ## # ####@##?????????????#???????? | | # # ##?###Y#?????????? ??????????? | | # ### #???## #?????????????????????? | | ## ### #### ###### ##???#%##?????????????????????? | | # ####??###??#?###????#%#??????#???????????????? | | ##??#?????#?????#????## #????????#????????????? | | " ###???#???#????????#?#?# #???????????????????? | | """ ##???????????????#?????# #???????????????????? | | ### #??????#?????????????#?# ????#?????????????? | | ?#####?????????????????#?????# #?????????????????? | | #??????????????#??????????????# ????????????????? | | ???????#?????#????????????#?#?? ???????????????? | | ??????????????#??????? ???????? ??????????????? | | ???????????????????????#????????? ?????????????? | | ??????#????????#?????#???????????? ????????????? | | ????#?#??????? ???????????????????? ????????????? | | ?????????????????????????????????????????????????? | | ??#??????????????????????????????????????????????? | | ???#???#?????????????????????????????????????????? | | ?????????????????????????????????????????????????? | | ?????????????????????????????????????????????????? | | ?????????????????????????????????????????????????? | | ?????#???????????????????????????????????????????? | | ?????????????????????????????????????????????????? | | ?????????????????????????????????????????????????? | +----------------------------------------------------+ Best States ------------- Heat Dissipation 25 Energy Generation 14 Energy Capacity 250 Matter Stores 300 Matter Capacity 300 Sight Range 16 Terrain Scan Range 16 Terrain Scan Density 10 Armor Coverage 150 Evasion (%) 55 Item Schematics ----------------- None Robot Schematics ------------------ None Fabricated ------------ Nothing Alien Tech Used ----------------- None Achievements -------------- None Challenges ------------ None Game ------ Seed FactoryKineticMagmablaster Manual? 0 Play Time 00:14:40 Cumulative 44.7 hours Start 2024.08.18 @ 10:29:26 End 2024.08.18 @ 10:41:00 Sessions 1 Manual Loads 0 Difficulty Rogue Special Mode None Game No. 74 Rogue 70 Adventurer 4 Explorer 0 Win Type - Total 0 Types 0/0/0/0/0/0/0/0/0 Lore% 12 Gallery% 36 Achievement% 28 Wizard Run 0 Options --------- Layout 1 ASCII 0 Keyboard 0 Movement Mouse Keybinds 0 Fullscreen 2 Font 24/Smallcaps Map View 50x35 Zoom Use 0% Tactical HUD 1 Map Filters NONE Filters NONE Steam 1 RUN: 5ab0e182-e960-456d-ade4-6da3dbba48ce